fUSD/lending_fUSD_20240514
["ID","MTS","AMOUNT","RATE_DAILY","PERIOD"]
[327033014,1715725844302,-685.5,0.00012994,2]
[327033016,1715725844311,-2849.33,0.00012994,2]
[327033018,1715725844320,-685.5,0.00012994,2]
[327033020,1715725844330,-1029.51,0.00012994,2]
[327033022,1715725844339,-3709.6,0.00012994,2]
[327033024,1715725844349,-1246.85,0.00012994,2]
[327033026,1715725844359,-679.5,0.00012994,2]
[327033028,1715725844368,-500.0,0.00012994,2]
[327033030,1715725844378,-1159.57,0.00012994,2]
[327033032,1715725844388,-657.25,0.00012994,2]
[327033034,1715725844397,-1406.07,0.00012994,2]
[327033036,1715725844407,-1171.79,0.00012994,2]
[327033038,1715725844416,-861.37,0.00012994,2]
[327033040,1715725844426,-1166.25,0.00012994,2]
[327033042,1715725844436,-1377.96,0.00012994,2]
[327033044,1715725844446,-1111.17,0.00012994,2]
[327033046,1715725844455,-1442.04,0.00012994,2]
[327033048,1715725844466,-500.0,0.00012994,2]
[327033050,1715725844475,-1636.87,0.00012994,2]
[327033053,1715725844487,-500.0,0.00012994,2]
[327033055,1715725844496,-511.34135461,0.00012994,2]
[327033057,1715725844506,-500.0,0.00012994,2]
[327033059,1715725844515,-3264.42,0.00012994,2]
[327033061,1715725844524,-1015.44,0.00012994,2]
[327033062,1715725844534,-4339.38,0.00012994,2]
[327033064,1715725844543,-1108.27,0.00012994,2]
[327033066,1715725844553,-557.9,0.00012994,2]
[327033068,1715725844562,-3986.56,0.00012994,2]
[327033070,1715725844572,-695.06,0.00012995,2]
[327033072,1715725844582,-1039.3,0.00012995,2]
[327033075,1715725844592,-1516.56,0.00012995,2]
[327033076,1715725844601,-2777.61,0.00012995,2]
[327033078,1715725844610,-685.5,0.00012995,2]
[327033080,1715725844620,-500.0,0.00012995,2]
[327033083,1715725844630,-508.78911405,0.00012995,2]
[327033084,1715725844640,-500.0,0.00012995,2]
[327033086,1715725844650,-3000.9,0.00012995,2]
[327033089,1715725844660,-500.0,0.00012995,2]
[327033091,1715725844670,-2299.0,0.00012995,2]
[327033093,1715725844679,-771.27,0.00012995,2]
[327033095,1715725844690,-500.0,0.00012995,2]
[327033097,1715725844699,-3449.59,0.00012995,2]
[327033099,1715725844708,-1876.71,0.00012995,2]
[327033101,1715725844721,-500.0,0.00012995,2]
[327033103,1715725844731,-500.0,0.00012995,2]
[327033104,1715725844740,-500.0,0.00012995,2]
[327033107,1715725844749,-1466.96,0.00012995,2]
[327033108,1715725844759,-162.48665574,0.00012996,2]
[327033111,1715725844769,-194.46900176,0.00012996,2]
[327033112,1715725844778,-279.55747506,0.00012996,2]
[327033114,1715725844787,-316.54159119,0.00012996,2]
[327033117,1715725844797,-248.09073762,0.00012996,2]
[327033119,1715725844808,-661.94,0.00012996,2]
[327033120,1715725844817,-500.0,0.00012996,2]
[327033122,1715725844827,-500.0,0.00012996,2]
[327033124,1715725844836,-500.0,0.00012996,2]
[327033126,1715725844845,-263.17661919,0.00012996,2]
[327033128,1715725844855,-500.0,0.00012996,2]
[327033130,1715725844865,-526.40248733,0.00012996,2]
[327033132,1715725844875,-500.0,0.00012996,2]
[327033134,1715725844884,-695.06,0.00012996,2]
[327033136,1715725844894,-695.06,0.00012996,2]
[327033138,1715725844903,-695.06,0.00012996,2]
[327033140,1715725844913,-695.06,0.00012996,2]
[327033142,1715725844922,-695.06,0.00012996,2]
[327033144,1715725844931,-695.21,0.00012996,2]
[327033147,1715725844941,-500.0,0.00012996,2]
[327033149,1715725844950,-500.0,0.00012996,2]
[327033151,1715725844966,-500.0,0.00012996,2]
[327033153,1715725844980,-408.80991285,0.00012996,2]
[327033155,1715725844990,-542.76,0.00012996,2]
[327033157,1715725845002,-272.30472139,0.00012996,2]
[327033159,1715725845012,-500.0,0.00012996,2]
[327033161,1715725845021,-500.0,0.00012996,2]
[327033163,1715725845032,-500.0,0.00012996,2]
[327033165,1715725845042,-500.0,0.00012996,2]
[327033167,1715725845053,-671.51,0.00012996,2]
[327033170,1715725845063,-3933.6602672,0.00012996,2]
[327033171,1715725845072,-500.0,0.00012996,2]
[327033174,1715725845082,-850.37,0.00012996,2]
[327033176,1715725845091,-1039.3,0.00012996,2]
[327033178,1715725845100,-1039.3,0.00012996,2]
[327033180,1715725845109,-1039.3,0.00012996,2]
[327033182,1715725845119,-1039.3,0.00012996,2]
[327033184,1715725845129,-1039.3,0.00012996,2]
[327033186,1715725845138,-1039.42127019,0.00012996,2]
[327033188,1715725845148,-14864.9201072,0.00012996,2]
[327033190,1715725845157,-1073.74,0.00012996,2]
[327033192,1715725845166,-277.0133756,0.00012996,2]
[327033194,1715725845176,-1516.56,0.00012996,2]
[327033196,1715725845185,-1516.56,0.00012996,2]
[327033198,1715725845194,-1516.56,0.00012996,2]
[327033200,1715725845204,-1516.56,0.00012996,2]
[327033202,1715725845214,-1516.56,0.00012996,2]
[327033204,1715725845223,-1516.73473974,0.00012996,2]
[327033206,1715725845233,-27313.61,0.00012996,2]
[327033208,1715725845243,-2777.61,0.00012996,2]
[327033210,1715725845252,-1403.24,0.00012996,2]
[327033212,1715725845264,-1403.24,0.00012996,2]
[327033214,1715725845273,-2264.1,0.00012996,2]
[327033216,1715725845283,-2849.33,0.00012996,2]
[327033218,1715725845292,-685.5,0.00012996,2]
[327033220,1715725845302,-685.5,0.00012996,2]
[327033222,1715725845311,-685.5,0.00012996,2]
[327033224,1715725845321,-685.5,0.00012996,2]
[327033226,1715725845330,-685.5,0.00012996,2]
[327033228,1715725845339,-685.5181449,0.00012996,2]
[327033230,1715725845349,-1029.51,0.00012996,2]
[327033232,1715725845358,-528.2963753,0.00012996,2]
[327033234,1715725845368,-1029.51,0.00012996,2]
[327033236,1715725845377,-3709.6,0.00012996,2]
[327033238,1715725845387,-1246.85,0.00012996,2]
[327033240,1715725845397,-1246.85,0.00012996,2]
[327033242,1715725845406,-679.5,0.00012996,2]
[327033244,1715725845415,-679.5,0.00012996,2]
[327033246,1715725845424,-500.0,0.00012996,2]
[327033248,1715725845433,-500.0,0.00012996,2]
[327033250,1715725845443,-1159.57,0.00012996,2]
[327033252,1715725845452,-1159.57,0.00012996,2]
[327033254,1715725845463,-500.0,0.00012996,2]
[327033256,1715725845472,-500.0,0.00012996,2]
[327033258,1715725845481,-657.25,0.00012996,2]
[327033260,1715725845491,-657.25,0.00012996,2]
[327033262,1715725845500,-3000.9,0.00012996,2]
[327033264,1715725845509,-1406.07,0.00012996,2]
[327033266,1715725845519,-1406.07,0.00012996,2]
[327033268,1715725845529,-10496.8289193,0.00012996,2]
[327033270,1715725845538,-1171.79,0.00012996,2]
[327033272,1715725845548,-1171.79,0.00012996,2]
[327033274,1715725845557,-861.37,0.00012996,2]
[327033276,1715725845566,-1166.25,0.00012996,2]
[327033278,1715725845576,-1377.96,0.00012996,2]
[327033280,1715725845585,-1377.96,0.00012996,2]
[327033282,1715725845594,-1111.17,0.00012996,2]
[327033284,1715725845604,-1111.17,0.00012996,2]
[327033286,1715725845614,-1442.04,0.00012996,2]
[327033289,1715725845624,-1442.04,0.00012996,2]
[327033291,1715725845633,-1636.87,0.00012996,2]
[327033293,1715725845642,-1636.87,0.00012996,2]
[327033295,1715725845651,-500.0,0.00012996,2]
[327033297,1715725845660,-500.0,0.00012996,2]
[327033299,1715725845670,-3264.42,0.00012996,2]
[327033300,1715725845679,-3264.42,0.00012996,2]
[327033302,1715725845688,-645.27,0.00012996,2]
[327033305,1715725845698,-1015.44,0.00012996,2]
[327033307,1715725845708,-1015.44,0.00012996,2]
[327033309,1715725845719,-4339.38,0.00012996,2]
[327033311,1715725845728,-2299.0,0.00012996,2]
[327033313,1715725845737,-4339.38,0.00012996,2]
[327033315,1715725845747,-1108.27,0.00012996,2]
[327033317,1715725845756,-1108.27,0.00012996,2]
[327033319,1715725845765,-500.0,0.00012996,2]
[327033321,1715725845775,-3449.59,0.00012996,2]
[327033323,1715725845784,-500.0,0.00012996,2]
[327033325,1715725845793,-500.0,0.00012996,2]
[327033327,1715725845803,-500.0,0.00012996,2]
[327033329,1715725845812,-557.9,0.00012996,2]
[327033331,1715725845822,-557.9,0.00012996,2]
[327033333,1715725845831,-3986.56,0.00012996,2]
[327033335,1715725845840,-3986.56,0.00012996,2]
[327033337,1715725845850,-661.94,0.00012997,2]
[327033339,1715725845859,-661.94,0.00012997,2]
[327033341,1715725845869,-500.0,0.00012997,2]
[327033343,1715725845879,-500.0,0.00012997,2]
[327033345,1715725845888,-500.0,0.00012997,2]
[327033347,1715725845898,-302.41765325,0.00012997,2]
[327033349,1715725845907,-569.54,0.00012997,2]
[327033351,1715725845916,-517.19,0.00012997,2]
[327033353,1715725845926,-517.19,0.00012997,2]
[327033355,1715725845935,-517.19,0.00012997,2]
[327033357,1715725845945,-500.0,0.00012997,2]
[327033360,1715725845959,-500.0,0.00012997,2]
[327033362,1715725845971,-219.02475172,0.00012997,2]
[327033364,1715725845984,-500.0,0.00012997,2]
[327033366,1715725845993,-500.0,0.00012997,2]
[327033368,1715725846005,-500.0,0.00012997,2]
[327033369,1715725846014,-500.0,0.00012997,2]
[327033371,1715725846023,-500.0,0.00012997,2]
[327033374,1715725846032,-257.2539735,0.00012997,2]
[327033376,1715725846044,-500.0,0.00012997,2]
[327033378,1715725846055,-500.0,0.00012997,2]
[327033380,1715725846065,-500.0,0.00012997,2]
[327033382,1715725846076,-500.0,0.00012997,2]
[327033384,1715725846085,-500.0,0.00012997,2]
[327033386,1715725846094,-500.0,0.00012997,2]
[327033388,1715725846103,-500.0,0.00012997,2]
[327033390,1715725846113,-500.0,0.00012997,2]
[327033392,1715725846122,-500.0,0.00012997,2]
[327033394,1715725846131,-500.0,0.00012997,2]
[327033396,1715725846140,-500.0,0.00012997,2]
[327033398,1715725846150,-500.0,0.00012997,2]
[327033400,1715725846159,-769.97,0.00012997,2]
[327033402,1715725846169,-769.97,0.00012997,2]
[327033404,1715725846179,-769.97,0.00012997,2]
[327033406,1715725846188,-500.0,0.00012997,2]
[327033408,1715725846198,-500.0,0.00012997,2]
[327033410,1715725846208,-613.83,0.00012997,2]
[327033412,1715725846219,-613.83,0.00012997,2]
[327033432,1715725846437,-613.83,0.00012997,2]
[327033433,1715725846447,-500.0,0.00012997,2]
[327033434,1715725846457,-500.0,0.00012997,2]
[327033435,1715725846468,-500.0,0.00012997,2]
[327033436,1715725846477,-500.0,0.00012997,2]
[327033437,1715725846486,-500.0,0.00012997,2]
[327033438,1715725846496,-500.0,0.00012997,2]
[327033439,1715725846505,-542.76,0.00012997,2]
[327033440,1715725846514,-542.76,0.00012997,2]
[327033441,1715725846524,-500.0,0.00012997,2]
[327033443,1715725846533,-500.0,0.00012997,2]
[327033445,1715725846543,-500.0,0.00012997,2]
[327033446,1715725846552,-500.0,0.00012997,2]
[327033448,1715725846562,-500.0,0.00012997,2]
[327033451,1715725846572,-671.51,0.00012997,2]
[327033452,1715725846582,-671.51,0.00012997,2]
[327033455,1715725846591,-500.0,0.00012997,2]
[327033456,1715725846600,-500.0,0.00012997,2]
[327033457,1715725846610,-850.37,0.00012997,2]
[327033458,1715725846619,-850.37,0.00012997,2]
[327033459,1715725846629,-1073.74,0.00012997,2]
[327033460,1715725846640,-1073.74,0.00012997,2]
[327033461,1715725846650,-27313.61,0.00012997,2]
[327033462,1715725846660,-2777.61,0.00012997,2]
[327033463,1715725846670,-27313.61,0.00012997,2]
[327033464,1715725846680,-2777.61,0.00012997,2]
[327033465,1715725846689,-1403.24,0.00012997,2]
[327033466,1715725846699,-2264.1,0.00012997,2]
[327033467,1715725846709,-2264.1,0.00012997,2]
[327033468,1715725846720,-2849.33,0.00012997,2]
[327033469,1715725846729,-2849.33,0.00012997,2]
[327033470,1715725846739,-1029.51,0.00012997,2]
[327033471,1715725846749,-3709.6,0.00012997,2]
[327033472,1715725846760,-3709.6,0.00012997,2]
[327033473,1715725846770,-1246.85,0.00012997,2]
[327033474,1715725846779,-679.5,0.00012997,2]
[327033475,1715725846789,-500.0,0.00012997,2]
[327033476,1715725846799,-1159.57,0.00012997,2]
[327033477,1715725846808,-500.0,0.00012997,2]
[327033478,1715725846818,-500.0,0.00012997,2]
[327033479,1715725846827,-500.0,0.00012997,2]
[327033480,1715725846837,-184.07610195,0.00012997,2]
[327033481,1715725846847,-657.25,0.00012997,2]
[327033482,1715725846858,-3000.9,0.00012997,2]
[327033484,1715725846868,-2089.59248896,0.00012997,2]
[327033494,1715725847127,-1000.0,0.000129,2]
[327033496,1715725847137,-7334.29170271,0.00012948,2]
[327033498,1715725847148,-406.24944498,0.00012948,2]
[327033501,1715725847168,-473.48421737,0.00012948,2]
[327033503,1715725847180,-29616.97463494,0.00012948,2]
[327033506,1715725847190,-911.30751104,0.00012997,2]
[327033507,1715725847200,-1406.07,0.00012997,2]
[327033508,1715725847210,-144.54146424,0.00012997,2]
[327033509,1715725847222,-355.45853576,0.00012997,2]
[327033510,1715725847231,-500.0,0.00012997,2]
[327033511,1715725847240,-1171.79,0.00012997,2]
[327033512,1715725847249,-861.37,0.00012997,2]
[327033513,1715725847258,-861.37,0.00012997,2]
[327033514,1715725847268,-566.60335734,0.00012997,2]
[327033515,1715725847281,-599.64664266,0.00012997,2]
[327033516,1715725847290,-1166.25,0.00012997,2]
[327033517,1715725847299,-1377.96,0.00012997,2]
[327033518,1715725847308,-1111.17,0.00012997,2]
[327033519,1715725847318,-1442.04,0.00012997,2]
[327033520,1715725847327,-1636.87,0.00012997,2]
[327033521,1715725847337,-500.0,0.00012997,2]
[327033522,1715725847346,-3264.42,0.00012997,2]
[327033523,1715725847355,-645.27,0.00012997,2]
[327033524,1715725847365,-645.27,0.00012997,2]
[327033525,1715725847374,-1015.44,0.00012997,2]
[327033526,1715725847384,-2299.0,0.00012997,2]
[327033527,1715725847393,-4339.38,0.00012997,2]
[327033528,1715725847403,-2299.0,0.00012997,2]
[327033529,1715725847412,-771.27,0.00012997,2]
[327033530,1715725847421,-1108.27,0.00012997,2]
[327033531,1715725847431,-771.27,0.00012997,2]
[327033532,1715725847440,-500.0,0.00012997,2]
[327033533,1715725847450,-3449.59,0.00012997,2]
[327033534,1715725847459,-3449.59,0.00012997,2]
[327033535,1715725847469,-1876.71,0.00012997,2]
[327033536,1715725847478,-1876.71,0.00012997,2]
[327033537,1715725847488,-500.0,0.00012997,2]
[327033538,1715725847497,-500.0,0.00012997,2]
[327033539,1715725847507,-500.0,0.00012997,2]
[327033540,1715725847518,-500.0,0.00012997,2]
[327033541,1715725847527,-557.9,0.00012997,2]
[327033542,1715725847537,-1466.96,0.00012997,2]
[327033543,1715725847547,-1466.96,0.00012997,2]
[327033544,1715725847557,-3986.56,0.00012997,2]
[327033545,1715725847567,-500.0,0.00012998,2]
[327033546,1715725847577,-500.0,0.00012998,2]
[327033547,1715725847586,-500.0,0.00012998,2]
[327033548,1715725847595,-500.0,0.00012998,2]
[327033549,1715725847604,-517.19,0.00012998,2]
[327033550,1715725847614,-517.19,0.00012998,2]
[327033551,1715725847623,-517.19,0.00012998,2]
[327033552,1715725847632,-517.19,0.00012998,2]
[327033554,1715725847643,-517.19,0.00012998,2]
[327033556,1715725847652,-517.19,0.00012998,2]
[327033558,1715725847662,-500.0,0.00012998,2]
[327033560,1715725847671,-500.0,0.00012998,2]
[327033562,1715725847681,-500.0,0.00012998,2]
[327033565,1715725847690,-500.0,0.00012998,2]
[327033568,1715725847699,-500.0,0.00012998,2]
[327033570,1715725847709,-500.0,0.00012998,2]
[327033571,1715725847719,-500.0,0.00012998,2]
[327033572,1715725847729,-500.0,0.00012998,2]
[327033573,1715725847738,-500.0,0.00012998,2]
[327033574,1715725847748,-500.0,0.00012998,2]
[327033575,1715725847757,-500.0,0.00012998,2]
[327033576,1715725847767,-500.0,0.00012998,2]
[327033577,1715725847776,-500.0,0.00012998,2]
[327033578,1715725847786,-500.0,0.00012998,2]
[327033579,1715725847796,-500.0,0.00012998,2]
[327033580,1715725847805,-500.0,0.00012998,2]
[327033581,1715725847815,-500.0,0.00012998,2]
[327033582,1715725847825,-500.0,0.00012998,2]
[327033583,1715725847834,-500.0,0.00012998,2]
[327033584,1715725847844,-500.0,0.00012998,2]
[327033585,1715725847854,-500.0,0.00012998,2]
[327033586,1715725847863,-500.0,0.00012998,2]
[327033587,1715725847873,-500.0,0.00012998,2]
[327033588,1715725847883,-500.0,0.00012998,2]
[327033589,1715725847892,-500.0,0.00012998,2]
[327033590,1715725847902,-500.0,0.00012998,2]
[327033591,1715725847911,-500.0,0.00012998,2]
[327033592,1715725847920,-500.0,0.00012998,2]
[327033593,1715725847931,-500.0,0.00012998,2]
[327033594,1715725847941,-500.0,0.00012998,2]
[327033595,1715725847952,-769.97,0.00012998,2]
[327033596,1715725847966,-769.97,0.00012998,2]
[327033597,1715725847979,-769.97,0.00012998,2]
[327033598,1715725847989,-769.97,0.00012998,2]
[327033599,1715725848000,-769.97,0.00012998,2]
[327033600,1715725848009,-769.97,0.00012998,2]
[327033601,1715725848019,-500.0,0.00012998,2]
[327033602,1715725848029,-500.0,0.00012998,2]
[327033603,1715725848038,-500.0,0.00012998,2]
[327033604,1715725848050,-500.0,0.00012998,2]
[327033605,1715725848060,-613.83,0.00012998,2]
[327033606,1715725848069,-613.83,0.00012998,2]
[327033607,1715725848079,-613.83,0.00012998,2]
[327033608,1715725848088,-500.0,0.00012998,2]
[327033609,1715725848098,-403.54961091,0.00012998,2]
[327033610,1715725848107,-613.83,0.00012998,2]
[327033611,1715725848116,-613.83,0.00012998,2]
[327033612,1715725848126,-613.83,0.00012998,2]
[327033613,1715725848136,-500.0,0.00012998,2]
[327033614,1715725848146,-500.0,0.00012998,2]
[327033615,1715725848155,-172.73565078,0.00012998,2]
[327033616,1715725848165,-500.0,0.00012998,2]
[327033617,1715725848174,-500.0,0.00012998,2]
[327033618,1715725848184,-514.36923256,0.00012998,2]
[327033619,1715725848193,-542.76,0.00012998,2]
[327033620,1715725848203,-542.76,0.00012998,2]
[327033621,1715725848213,-542.76,0.00012998,2]
[327033622,1715725848223,-542.76,0.00012998,2]
[327033623,1715725848231,-500.0,0.00012998,2]
[327033624,1715725848241,-500.0,0.00012998,2]
[327033625,1715725848250,-500.0,0.00012998,2]
[327033626,1715725848260,-500.0,0.00012998,2]
[327033627,1715725848270,-500.0,0.00012998,2]
[327033628,1715725848280,-500.0,0.00012998,2]
[327033629,1715725848289,-500.0,0.00012998,2]
[327033630,1715725848299,-500.0,0.00012998,2]
[327033631,1715725848309,-500.0,0.00012998,2]
[327033632,1715725848318,-500.0,0.00012998,2]
[327033633,1715725848328,-671.51,0.00012998,2]
[327033634,1715725848337,-671.51,0.00012998,2]
[327033635,1715725848347,-671.51,0.00012998,2]
[327033636,1715725848357,-500.0,0.00012998,2]
[327033637,1715725848366,-500.0,0.00012998,2]
[327033638,1715725848376,-500.0,0.00012998,2]
[327033639,1715725848386,-850.37,0.00012998,2]
[327033640,1715725848395,-850.37,0.00012998,2]
[327033641,1715725848405,-850.37,0.00012998,2]
[327033642,1715725848415,-1073.74,0.00012998,2]
[327033643,1715725848425,-1073.74,0.00012998,2]
[327033644,1715725848434,-1073.74,0.00012998,2]
[327033645,1715725848445,-27313.61,0.00012998,2]
[327033646,1715725848455,-2777.61,0.00012998,2]
[327033647,1715725848464,-27313.61,0.00012998,2]
[327033648,1715725848475,-2777.61,0.00012998,2]
[327033649,1715725848485,-27313.61,0.00012998,2]
[327033650,1715725848494,-27313.61,0.00012998,2]
[327033651,1715725848504,-1403.24,0.00012998,2]
[327033652,1715725848515,-1403.24,0.00012998,2]
[327033653,1715725848524,-2264.1,0.00012998,2]
[327033654,1715725848535,-2264.1,0.00012998,2]
[327033655,1715725848545,-2264.1,0.00012998,2]
[327033656,1715725848555,-2264.1,0.00012998,2]
[327033657,1715725848567,-2849.33,0.00012998,2]
[327033658,1715725848580,-2849.33,0.00012998,2]
[327033659,1715725848593,-2849.33,0.00012998,2]
[327033660,1715725848606,-1895.47498072,0.00012998,2]
[327033661,1715725848908,-292.95172488,0.00012948,2]
[327033662,1715725848983,-815.26017648,0.00012948,2]
[327033695,1715727031692,-463.25,0.00010411,2]
[327033696,1715727031702,-13910.93724896,0.0001118,2]
[327033697,1715727031715,-308.775,0.0001118,2]
[327033698,1715727031728,-4238.28529662,0.0001118,2]
[327033699,1715727031737,-2950.51,0.00011555,2]
[327033700,1715727031747,-159.75050637,0.00011573,2]
[327033701,1715727031756,-250.0,0.00011584,2]
[327033702,1715727031766,-171.03,0.00011673,2]
[327033703,1715727031775,-175.76,0.00011723,2]
[327033704,1715727031785,-6167.12120203,0.000118,2]
[327033705,1715727031794,-19152.39,0.00011821,2]
[327033706,1715727031804,-243.97,0.00011864,2]
[327033707,1715727031813,-499.99,0.00011864,2]
[327033708,1715727031823,-863.17,0.0001188,2]
[327033709,1715727031832,-400.0,0.000119,4]
[327033710,1715727031842,-1477.12222666,0.00012,2]
[327033711,1715727031853,-1068.63540404,0.00012,2]
[327033712,1715727031894,-301.90641716,0.00012,2]
[327033713,1715727031955,-4228.68303978,0.00012,2]
[327033716,1715727031966,-2084.81,0.00012,2]
[327033727,1715727037596,-727.3743122,0.00012,2]
[327033728,1715727037722,-335.39622056,0.00012,2]
[327033759,1715727038290,-302.5936972,0.00012,2]
[327033761,1715727038302,-497.89032569,0.00012,2]
[327033763,1715727038313,-384.2290936,0.00012,2]
[327033765,1715727038329,-3595.66390398,0.00012,2]
[327033767,1715727038338,-1933.66778025,0.00012,2]
[327033769,1715727038349,-17687.4155034,0.00012,2]
[327033772,1715727038359,-800.0,0.00012,4]
[327033773,1715727038369,-1200.0,0.000121,4]
[327033776,1715727038379,-1600.0,0.000122,4]
[327033778,1715727038388,-2000.0,0.000123,4]
[327033780,1715727038397,-400.0,0.000124,4]
[327033782,1715727038410,-400.0,0.000125,4]
[327033784,1715727038419,-400.0,0.000126,4]
[327033786,1715727038429,-400.0,0.000127,4]
[327033788,1715727038439,-1000.0,0.00012776,2]
[327033790,1715727038448,-815.2602,0.00012776,2]
[327033792,1715727038457,-7500.0,0.00012776,2]
[327033794,1715727038467,-184.18194573,0.00012776,2]
[327033796,1715727038477,-1000.0,0.000128,2]
[327033797,1715727038487,-400.0,0.000128,4]
[327033799,1715727038496,-169.52,0.00012824,2]
[327033801,1715727038505,-150.0,0.00012824,2]
[327033803,1715727038515,-150.0,0.00012824,2]
[327033805,1715727038525,-150.0,0.00012824,2]
[327033807,1715727038534,-153.74,0.00012852,2]
[327033809,1715727038543,-162.01,0.00012866,2]
[327033811,1715727038552,-181.24821348,0.00012869,2]
[327033813,1715727038561,-574.442238,0.00012876,2]
[327033815,1715727038571,-500.0,0.00012876,2]
[327033817,1715727038580,-500.0,0.00012876,2]
[327033819,1715727038590,-645.54,0.00012876,2]
[327033821,1715727038599,-500.0,0.00012876,2]
[327033823,1715727038609,-500.0,0.00012876,2]
[327033825,1715727038619,-500.0,0.00012876,2]
[327033827,1715727038628,-500.0,0.00012876,2]
[327033829,1715727038638,-500.0,0.00012876,2]
[327033831,1715727038647,-500.0,0.00012876,2]
[327033833,1715727038658,-500.0,0.00012876,2]
[327033835,1715727038667,-464.36,0.00012876,2]
[327033837,1715727038676,-500.0,0.00012876,2]
[327033839,1715727038685,-500.0,0.00012876,2]
[327033841,1715727038694,-500.0,0.00012876,2]
[327033843,1715727038704,-500.0,0.00012876,2]
[327033845,1715727038713,-591.91,0.00012876,2]
[327033847,1715727038723,-500.0,0.00012876,2]
[327033849,1715727038732,-500.0,0.00012876,2]
[327033851,1715727038742,-554.67,0.00012876,2]
[327033853,1715727038751,-580.78,0.00012876,2]
[327033855,1715727038761,-500.0,0.00012876,2]
[327033857,1715727038771,-500.0,0.00012876,2]
[327033860,1715727038781,-500.0,0.00012876,2]
[327033862,1715727038790,-500.0,0.00012876,2]
[327033863,1715727038800,-500.0,0.00012876,2]
[327033866,1715727038809,-306.48947245,0.00012876,2]
[327033867,1715727038818,-500.0,0.00012876,2]
[327033869,1715727038828,-500.0,0.00012876,2]
[327033871,1715727038837,-500.0,0.00012876,2]
[327033874,1715727038847,-500.0,0.00012876,2]
[327033875,1715727038856,-500.0,0.00012876,2]
[327033877,1715727038865,-500.0,0.00012876,2]
[327033880,1715727038876,-500.0,0.00012876,2]
[327033882,1715727038885,-500.0,0.00012876,2]
[327033883,1715727038895,-500.0,0.00012876,2]
[327033886,1715727038905,-281.07,0.00012876,2]
[327033887,1715727038915,-500.0,0.00012876,2]
[327033889,1715727038924,-500.0,0.00012876,2]
[327033892,1715727038934,-500.0,0.00012876,2]
[327033893,1715727038944,-500.0,0.00012876,2]
[327033895,1715727038954,-500.0,0.00012876,2]
[327033897,1715727038964,-500.0,0.00012876,2]
[327033899,1715727038973,-500.0,0.00012876,2]
[327033901,1715727038984,-500.0,0.00012876,2]
[327033903,1715727038993,-500.0,0.00012876,2]
[327033905,1715727039004,-500.0,0.00012876,2]
[327033907,1715727039013,-500.0,0.00012876,2]
[327033910,1715727039023,-500.0,0.00012876,2]
[327033912,1715727039032,-613.88,0.00012876,2]
[327033914,1715727039042,-500.0,0.00012876,2]
[327033916,1715727039051,-500.0,0.00012876,2]
[327033918,1715727039061,-500.0,0.00012876,2]
[327033919,1715727039071,-390.68,0.00012876,2]
[327033922,1715727039080,-500.0,0.00012876,2]
[327033924,1715727039090,-500.0,0.00012876,2]